bitfinex-derivatives/quotes_ETHF0:USTF0_20250102
["timestamp","ask_amount","ask_price","bid_price","bid_amount"]
[1735829068175,3.2078,3483.0,3482.1,3.2078]
[1735829068371,0.28743,3482.8,3482.6,0.28743]
[1735829068672,3.2078,3483.0,3482.9,0.28741]
[1735829069278,3.2078,3483.0,3482.5,3.2078]
[1735829069578,3.49521,3483.0,3482.9,0.28741]
[1735829069774,3.49521,3483.0,3481.5,2.92465]
[1735829069775,3.2078,3483.1,3482.1,3.2078]
[1735829069984,0.28746,3482.4,3482.3,0.28746]
[1735829070279,0.28747,3482.2,3482.1,3.2078]
[1735829070682,0.28746,3482.4,3482.1,3.2078]
[1735829070875,0.28746,3482.3,3482.2,0.28747]
[1735829071185,0.28745,3482.5,3482.4,0.28745]
[1735829071479,3.92632,3483.0,3482.2,0.28746]
[1735829071480,1.00595,3482.9,3482.2,0.28746]
[1735829071677,0.71854,3482.9,3482.1,3.2078]
[1735829071872,0.28747,3482.2,3482.1,3.49528]
[1735829072479,0.28747,3482.2,3482.1,3.2078]
[1735829072682,0.28747,3482.2,3482.1,3.49528]
[1735829072980,0.28747,3482.2,3482.1,3.2078]
[1735829073278,3.2078,3482.6,3481.5,3.2078]
[1735829073474,3.2078,3482.2,3481.5,3.2078]
[1735829073784,3.2078,3482.2,3481.9,0.2875]
[1735829073785,0.2875,3482.0,3481.9,0.2875]
[1735829073978,3.2078,3482.2,3481.5,3.2078]
[1735829074178,3.2078,3483.5,3482.0,3.92651]
[1735829074375,0.28742,3482.8,3482.7,0.28743]
[1735829074681,8.2078,3483.5,3482.4,3.2078]
[1735829074682,3.2078,3483.5,3482.4,3.2078]
[1735829074877,0.28737,3483.4,3483.0,0.2874]
[1735829075074,0.28739,3483.2,3483.0,0.2874]
[1735829075276,3.2078,3483.5,3482.8,0.28741]
[1735829075474,3.2078,3483.5,3482.5,0.7186]
[1735829075674,0.28739,3483.2,3482.5,0.7186]
[1735829076077,3.2078,3483.5,3483.0,0.2874]
[1735829076283,3.2078,3483.5,3482.4,3.2078]
[1735829076584,3.2078,3483.0,3482.4,0.28745]
[1735829076884,3.2078,3482.5,3481.6,3.2078]
[1735829077090,0.28748,3482.2,3482.0,0.28748]
[1735829077280,0.71852,3483.0,3482.0,3.2078]
[1735829077481,0.28747,3482.3,3482.2,0.28747]
[1735829077786,0.28748,3482.2,3482.1,0.28747]
[1735829078181,0.28748,3482.1,3482.0,3.49528]
[1735829078382,0.28748,3482.1,3482.0,3.2078]
[1735829078979,3.2078,3482.5,3482.0,3.2078]
[1735829079287,0.28748,3482.1,3482.0,3.2078]
[1735829079676,0.28748,3482.1,3482.0,3.49529]
[1735829079880,0.28748,3482.1,3482.0,3.2078]
[1735829080086,0.28748,3482.1,3482.0,3.49529]
[1735829081080,0.28748,3482.1,3482.0,3.2078]
[1735829084680,1.488,3482.4,3481.5,3.2078]
[1735829084977,3.2078,3481.7,3480.1,3.2078]
[1735829085281,3.2078,3481.3,3480.5,3.2078]
[1735829085487,0.71872,3482.1,3480.9,3.2078]
[1735829085488,3.2078,3481.9,3480.9,3.2078]
[1735829085684,0.28749,3482.0,3481.7,0.28751]
[1735829085878,0.28745,3482.4,3481.9,0.28749]
[1735829086081,3.2078,3482.5,3481.9,0.28749]
[1735829086288,3.2078,3482.5,3481.7,3.2078]
[1735829086490,0.28749,3482.0,3481.8,0.2875]
[1735829086685,3.2078,3482.1,3481.3,3.2078]
[1735829086883,0.28748,3482.1,3481.4,0.28754]
[1735829087082,0.28748,3482.1,3481.9,0.28749]
[1735829087481,0.28748,3482.1,3481.3,3.2078]
[1735829087482,0.28754,3481.4,3481.3,3.2078]
[1735829088986,3.2078,3482.1,3481.3,3.2078]
[1735829089594,0.28752,3481.6,3481.4,0.28753]
[1735829089787,3.2078,3482.1,3481.3,3.2078]
[1735829090288,0.28754,3481.4,3481.3,3.2078]
[1735829091991,3.2078,3482.1,3481.3,3.2078]
[1735829092188,0.28749,3482.0,3481.9,0.28749]
[1735829092389,0.2875,3481.9,3481.7,0.28751]
[1735829092595,0.28749,3482.0,3481.8,0.2875]
[1735829092791,2.5403,3482.6,3481.7,3.2078]
[1735829092991,1.2654,3482.6,3482.1,3.2078]
[1735829093188,3.92642,3482.5,3481.7,3.2078]
[1735829093488,0.71864,3482.4,3481.5,3.2078]
[1735829093688,0.2875,3481.8,3481.5,3.2078]
[1735829093883,0.71864,3482.4,3481.5,3.2078]
[1735829094390,0.28752,3481.6,3481.5,3.2078]
[1735829094599,0.71873,3482.0,3481.0,3.2078]
[1735829094895,0.71873,3482.0,3480.4,1.00667]
[1735829094896,0.28757,3481.0,3480.4,1.00667]
[1735829095095,0.28759,3480.8,3480.7,0.28759]
[1735829095392,0.2876,3480.8,3480.7,0.28759]
[1735829095597,0.71885,3481.4,3480.3,4.4222]
[1735829095898,0.28758,3481.0,3480.9,0.28757]
[1735829096490,0.28759,3480.8,3480.7,0.28759]
[1735829097296,0.28762,3480.5,3480.4,0.28762]
[1735829097795,0.28761,3480.6,3480.5,0.28761]
[1735829098901,0.2876,3480.7,3480.6,0.2876]
[1735829099499,0.28759,3480.9,3480.8,0.28758]
[1735829099690,0.28755,3481.4,3481.3,0.28755]
[1735829099891,0.28754,3481.4,3481.3,0.28754]
[1735829100190,2.6149,3482.2,3481.2,3.2078]
[1735829100395,0.28747,3482.4,3482.3,0.28745]
[1735829100598,7.79505613,3482.5,3481.4,3.2078]
[1735829100893,0.28753,3481.5,3481.4,3.2078]
[1735829101196,3.2078,3482.1,3481.4,3.2078]
[1735829101399,0.2875,3481.9,3481.8,0.2875]
[1735829101694,3.2078,3482.3,3481.4,3.2078]
[1735829101892,8.92648,3482.3,3481.4,3.2078]
[1735829102091,2.6303,3482.2,3481.4,3.2078]
[1735829102295,0.71881,3481.6,3480.1,3.2078]
[1735829102503,2.6303,3482.2,3480.1,3.2078]
[1735829102504,3.4954,3480.7,3480.1,3.49544]
[1735829102802,3.2078,3481.0,3480.1,3.2078]
[1735829102998,3.2078,3481.0,3480.9,0.28758]
[1735829103997,1.313,3482.1,3480.9,3.2078]
[1735829103998,3.2078,3482.0,3480.9,3.2078]
[1735829104197,3.2078,3483.6,3481.7,3.2078]
[1735829104405,3.2078,3483.6,3480.9,5.0]
[1735829104406,7.2473,3483.6,3482.2,3.2078]
[1735829104704,7.2473,3483.6,3483.0,0.2874]
[1735829104906,8.991904,3483.1,3483.0,0.2874]
[1735829105401,8.991904,3483.1,3482.6,3.2078]
[1735829105605,8.991904,3483.1,3480.7,1.43798]
[1735829105606,0.28747,3482.2,3482.1,3.2078]
[1735829105895,3.2078,3482.7,3481.9,0.2875]
[1735829106098,3.2078,3482.7,3481.5,3.2078]
[1735829106295,3.2078,3483.2,3482.3,3.2078]
[1735829106495,3.2078,3483.2,3482.5,0.71862]
[1735829106805,3.2078,3483.2,3482.3,8.2078]
[1735829106992,3.2078,3483.2,3482.3,3.2078]
[1735829107193,7.86930682,3484.3,3484.1,0.28731]
[1735829107404,7.86930682,3484.7,3484.2,3.2078]
[1735829107599,7.86930682,3484.7,3483.8,3.2078]
[1735829107803,0.28729,3484.4,3483.8,3.2078]
[1735829108003,3.2078,3484.5,3483.8,3.2078]
[1735829108301,3.49508,3484.5,3484.2,0.2873]
[1735829108609,3.2078,3484.5,3483.8,3.2078]
[1735829109705,3.2078,3484.0,3483.2,3.2078]
[1735829110095,0.28735,3483.8,3483.4,0.28737]
[1735829110301,3.2078,3484.0,3483.2,3.2078]
[1735829110493,3.49513,3484.0,3483.6,0.28735]
[1735829110695,0.28733,3483.9,3483.1,3.2078]
[1735829110897,0.28733,3483.9,3483.4,0.28737]
[1735829111105,0.28733,3483.9,3483.6,0.28735]
[1735829111407,3.2078,3484.0,3483.6,0.28735]
[1735829111605,3.2078,3484.0,3483.1,3.2078]
[1735829111806,0.28739,3483.3,3483.1,3.2078]
[1735829112006,0.28738,3483.4,3483.1,3.49519]
[1735829112205,0.28734,3483.8,3483.1,3.49519]
[1735829112402,3.8812,3483.9,3483.1,3.2078]
[1735829112608,2.81333,3483.9,3483.6,0.28735]
[1735829113004,2.81333,3483.9,3483.1,3.2078]
[1735829113005,2.526,3483.9,3483.1,3.2078]
[1735829113205,3.2078,3483.5,3482.7,3.2078]
[1735829113403,0.2874,3483.1,3482.8,0.28742]
[1735829113606,3.2078,3483.5,3482.7,3.2078]
[1735829113912,3.2078,3483.5,3482.4,1.2549]
[1735829114107,3.2078,3483.0,3482.1,3.2078]
[1735829114410,2.526,3483.9,3482.9,3.2078]
[1735829114606,2.526,3483.9,3482.5,3.2078]
[1735829114812,3.2078,3484.1,3483.3,3.2078]
[1735829115016,0.28733,3484.0,3483.6,0.28735]
[1735829115311,0.28735,3483.7,3483.0,0.2874]
[1735829115512,3.2078,3484.1,3482.8,3.2078]
[1735829115706,0.28737,3483.5,3483.2,0.28738]
[1735829115905,3.2078,3483.7,3483.3,0.28738]
[1735829116101,3.2078,3483.7,3482.8,3.2078]
[1735829116612,0.2874,3483.1,3482.8,3.49521]
[1735829116811,3.2078,3483.3,3482.8,3.2078]
[1735829117004,0.28739,3483.2,3483.0,0.2874]
[1735829117205,3.2078,3483.3,3483.0,0.2874]
[1735829117415,3.2078,3483.3,3483.2,0.28739]
[1735829117805,0.28734,3483.8,3482.8,3.2078]
[1735829117806,3.2078,3483.7,3483.6,0.28735]
[1735829118321,1.3438,3484.5,3483.3,3.2078]
[1735829118511,0.2873,3484.3,3483.5,0.71842]
[1735829118706,0.2873,3484.3,3484.1,0.28731]
[1735829118915,0.2873,3484.3,3483.5,0.71842]
[1735829119114,0.28731,3484.2,3483.9,0.28732]
[1735829119309,1.3438,3484.5,3483.5,0.71842]
[1735829119619,0.28729,3484.4,3484.2,0.2873]
[1735829119814,0.28729,3484.4,3484.0,0.28732]
[1735829120020,0.2873,3484.3,3484.1,0.28731]
[1735829120522,1.3438,3484.5,3483.7,3.2078]
[1735829120817,0.28731,3484.2,3484.0,0.28732]
[1735829121313,0.2873,3484.3,3483.7,3.2078]
[1735829121513,1.3438,3484.5,3484.0,0.28732]
[1735829121705,0.7183,3484.1,3483.2,3.2078]
[1735829121907,0.28731,3484.1,3483.6,0.28735]
[1735829122107,3.2078,3484.2,3483.2,3.2078]
[1735829122313,0.28736,3483.6,3483.4,0.28736]
[1735829122521,0.28736,3483.5,3483.4,0.28736]
[1735829122912,3.2078,3484.3,3483.2,3.2078]
[1735829123120,3.2078,3483.9,3483.2,3.49519]
[1735829123415,5.0,3484.3,3483.2,3.49519]
[1735829123416,1.434,3484.1,3483.2,3.2078]
[1735829123615,1.3438,3484.5,3483.6,3.2078]
[1735829123816,0.28731,3484.2,3483.6,3.2078]
[1735829124023,1.3438,3484.5,3483.6,3.2078]
[1735829124415,0.28731,3484.2,3484.0,0.28732]
[1735829124713,3.2078,3484.7,3484.0,3.2078]
[1735829124921,3.49507,3484.7,3484.6,0.28727]
[1735829125121,3.2078,3485.3,3484.6,0.28727]
[1735829125329,0.28726,3484.8,3484.7,0.28727]
[1735829125525,1.2831,3485.4,3485.3,0.28722]
[1735829125716,1.328,3486.1,3485.2,0.71807]
[1735829125917,10.45090682,3486.4,3486.3,0.28713]
[1735829126119,9.15240682,3486.4,3486.3,0.28713]
[1735829126436,9.15240682,3486.4,3485.1,3.2078]
[1735829126623,0.2872,3485.5,3485.4,0.2872]
[1735829126830,4.5063,3486.3,3484.8,0.71815]
[1735829127121,4.5063,3486.3,3484.7,4.6418]
[1735829127122,3.2078,3485.8,3485.5,0.2872]
[1735829127422,0.28722,3485.3,3484.7,3.2078]
[1735829127633,3.92575,3485.8,3484.7,3.2078]
[1735829127819,0.71791,3486.0,3484.7,3.2078]
[1735829128015,0.28716,3486.1,3485.9,0.28716]
[1735829128220,1.2831,3486.4,3485.5,3.2078]
[1735829128619,0.28714,3486.3,3486.1,0.28715]
[1735829128825,0.28713,3486.3,3485.5,3.2078]
[1735829129021,0.28714,3486.3,3486.0,0.28716]
[1735829129219,4.4909,3486.4,3485.5,3.2078]
[1735829129423,1.2831,3486.4,3485.5,3.2078]
[1735829129930,0.28719,3485.6,3485.5,3.495]
[1735829130423,1.2831,3486.4,3485.8,0.28717]
[1735829130624,0.28714,3486.3,3486.1,0.28714]
[1735829130821,0.28714,3486.3,3486.2,0.28714]
[1735829131022,4.5358,3486.9,3485.9,3.2078]
[1735829131222,3.2078,3487.3,3486.4,3.2078]
[1735829131622,1.3517,3487.4,3486.4,3.2078]
[1735829131826,1.3517,3487.4,3486.5,0.28711]
[1735829131827,0.71763,3487.3,3486.5,0.28711]
[1735829132132,0.2871,3486.7,3486.5,0.28711]
[1735829132321,1.3517,3487.4,3486.3,3.2078]
[1735829132524,1.3517,3487.4,3486.4,0.28712]
[1735829132525,0.28711,3486.7,3486.4,0.28712]
[1735829132828,1.3517,3487.4,3486.4,3.2078]
[1735829133229,1.3517,3487.4,3486.3,3.2078]
[1735829133423,1.3517,3487.4,3485.8,1.433]
[1735829133424,3.2078,3487.8,3486.8,3.2078]
[1735829133631,0.28705,3487.4,3487.1,0.28706]
[1735829133934,0.28705,3487.4,3486.8,3.2078]
[1735829133935,0.28705,3487.3,3486.9,0.28708]
[1735829134231,3.2078,3487.8,3487.2,3.2078]
[1735829134920,3.2078,3488.6,3487.2,3.2078]
[1735829135123,3.2078,3488.2,3487.2,3.2078]
[1735829135539,0.28699,3488.1,3487.6,0.28702]
[1735829135726,0.287,3487.9,3487.2,3.2078]
[1735829135931,3.2078,3488.2,3487.2,3.2078]
[1735829136124,0.28705,3487.3,3487.2,3.2078]
[1735829136329,0.71756,3487.7,3486.5,1.3371]
[1735829136528,0.28708,3487.0,3486.7,3.4949]
[1735829136734,3.2078,3487.5,3486.7,3.2078]
[1735829137030,0.28709,3486.9,3486.7,3.2078]
[1735829137221,6.8,3487.4,3486.7,3.2078]
[1735829137424,0.28709,3486.9,3486.7,3.2078]
[1735829137625,0.28709,3486.9,3485.8,0.71793]
[1735829137626,3.2078,3487.1,3486.2,3.2078]
[1735829137821,3.2078,3487.1,3486.5,0.28711]
[1735829138025,0.28713,3486.3,3486.2,3.2078]
[1735829138231,0.28712,3486.5,3486.2,3.2078]
[1735829138440,3.2078,3486.7,3486.2,3.49494]
[1735829138738,3.2078,3487.1,3486.2,3.2078]
[1735829139228,3.2078,3487.1,3486.8,0.28709]
[1735829139637,3.2078,3487.1,3486.7,0.2871]
[1735829139638,0.28709,3486.9,3486.7,0.2871]
[1735829139825,3.2078,3487.1,3486.2,3.2078]
[1735829140136,3.2078,3487.1,3486.6,0.2871]
[1735829140332,3.2078,3488.0,3487.0,3.2078]
[1735829140633,0.287,3487.9,3487.4,3.2078]
[1735829140826,3.2078,3488.4,3487.4,3.2078]
[1735829141134,3.2078,3488.0,3487.4,3.2078]
[1735829141434,3.2078,3488.0,3487.0,3.2078]
[1735829141633,3.2078,3488.0,3485.9,1.43583]
[1735829141634,3.2078,3487.5,3486.4,3.2078]
[1735829141936,0.28708,3486.9,3486.5,0.28711]
[1735829142234,3.2078,3487.2,3486.4,3.2078]
[1735829142730,1.2973,3487.4,3486.3,0.71784]
[1735829142731,1.2973,3487.4,3486.9,0.28708]
[1735829142930,0.28708,3487.0,3486.8,3.49489]
[1735829143135,1.2973,3487.4,3486.8,3.2078]
[1735829143341,0.28709,3486.8,3486.5,0.28711]
[1735829143640,0.2871,3486.8,3486.7,0.2871]
[1735829143934,4.5051,3487.4,3486.8,0.28709]
[1735829144135,0.28708,3487.0,3486.8,0.28709]
[1735829144529,0.28708,3487.0,3486.9,0.28708]
[1735829144838,0.28705,3487.3,3486.5,0.71779]
[1735829145034,0.28708,3487.0,3486.4,3.2078]
[1735829145234,4.5051,3487.4,3486.4,3.2078]
[1735829145534,0.71763,3487.3,3486.4,3.2078]
[1735829145837,3.2078,3487.0,3486.4,3.2078]
[1735829146133,3.2078,3487.5,3485.9,3.2078]
[1735829146336,2.6279,3487.2,3485.9,3.2078]
[1735829146531,2.6279,3487.2,3486.4,0.28713]
[1735829146532,0.2871,3486.8,3486.4,0.28713]
[1735829146733,2.6279,3487.2,3486.3,3.2078]
[1735829147537,0.28715,3486.1,3486.0,0.28715]
[1735829147732,3.2078,3486.6,3486.1,0.28715]
[1735829147733,0.28715,3486.2,3486.1,0.28715]
[1735829147933,3.2078,3486.6,3485.9,0.28717]
[1735829148237,3.2078,3486.6,3485.8,3.2078]
[1735829148437,0.28715,3486.1,3486.0,0.28715]
[1735829148640,0.28712,3486.5,3486.1,0.28714]
[1735829148836,0.28714,3486.3,3486.1,0.28714]
[1735829149034,3.2078,3486.6,3485.8,3.2078]
[1735829149338,0.28711,3486.7,3486.0,0.7179]
[1735829149632,3.2078,3486.9,3486.1,0.28714]
[1735829149838,0.71774,3486.8,3486.1,0.28714]
[1735829150138,0.28716,3486.0,3485.9,0.28716]
[1735829150441,2.42033003,3486.7,3485.8,3.2078]
[1735829150442,3.2078,3486.4,3485.8,3.2078]
[1735829150643,3.2078,3486.4,3486.3,0.28713]
[1735829151834,0.2871,3486.8,3486.7,0.2871]
[1735829152040,0.28709,3486.9,3486.8,0.28709]
[1735829152533,7.62742003,3487.5,3486.3,3.92562]
[1735829152735,0.28708,3486.9,3486.3,3.2078]
[1735829152936,0.2871,3486.7,3486.6,0.2871]
[1735829153242,3.2078,3486.7,3485.8,3.2078]
[1735829153437,0.2871,3486.7,3486.6,0.2871]
[1735829153636,3.2078,3486.8,3486.2,3.2078]
[1735829153836,3.2078,3486.8,3485.8,0.71794]
[1735829153837,3.2078,3486.8,3485.8,3.2078]
[1735829154041,0.71776,3486.7,3485.8,3.2078]
[1735829154235,2.42033003,3486.7,3485.8,3.2078]
[1735829154847,0.28715,3486.2,3485.8,3.2078]
[1735829155035,0.28713,3486.3,3486.2,0.28713]
[1735829155235,0.28714,3486.3,3486.2,0.28713]
[1735829155530,2.42033003,3486.7,3485.4,3.2078]
[1735829155531,0.71778,3486.6,3485.4,3.2078]
[1735829155736,0.28713,3486.3,3486.0,0.28715]
[1735829156035,0.28718,3485.8,3485.7,0.28717]
[1735829156447,5.62813003,3485.9,3484.5,3.2078]
[1735829156643,1.3263,3486.5,3484.1,4.46267697]
[1735829156644,5.62813003,3484.7,3484.1,4.46267697]
[1735829156941,0.28731,3484.2,3484.1,4.46267697]
[1735829157144,2.70764003,3484.2,3484.1,4.46267697]
[1735829157342,0.28735,3483.7,3483.5,0.28736]
[1735829157539,0.28734,3483.8,3483.5,0.28736]
[1735829157842,3.65143003,3484.2,3483.1,3.2078]
[1735829158043,3.74053003,3484.6,3483.7,3.2078]
[1735829158536,0.28729,3484.4,3484.2,0.2873]
[1735829158733,3.74053003,3484.6,3483.7,3.2078]
[1735829159046,0.28728,3484.6,3484.4,0.28729]
[1735829159248,0.28725,3484.9,3484.7,0.28726]
[1735829159442,0.28726,3484.8,3484.6,0.28727]
[1735829159645,1.3081,3485.2,3484.1,3.2078]
[1735829159944,2.42033003,3485.0,3484.1,3.2078]
[1735829160146,0.28726,3484.8,3484.6,0.28727]
[1735829160344,1.3081,3485.2,3484.1,3.2078]
[1735829160535,1.3081,3485.2,3484.5,3.2078]
[1735829160743,3.2078,3484.9,3484.1,3.2078]
[1735829161045,3.2078,3484.9,3483.8,4.57068003]
[1735829161046,1.3256,3485.5,3484.6,2.42033003]
[1735829161341,0.22949738,3486.6,3485.3,3.2078]
[1735829161342,1.327,3486.1,3485.3,3.2078]
[1735829161547,0.28712,3486.5,3486.3,0.28713]
[1735829161846,2.70744003,3486.6,3486.4,0.28712]
[1735829162045,2.42033003,3486.6,3485.7,3.2078]
[1735829162238,0.28719,3485.6,3485.4,0.28721]
[1735829162443,2.42033003,3486.2,3485.1,3.2078]
[1735829162646,2.42033003,3486.2,3485.6,0.28718]
[1735829162647,0.28717,3485.9,3485.6,0.28718]
[1735829162843,2.42033003,3485.8,3485.1,3.2078]
[1735829163044,0.71801,3485.5,3484.7,3.2078]
[1735829163248,1.2503,3485.7,3485.1,3.2078]
[1735829163444,1.327,3485.8,3485.2,0.71807]
[1735829163650,1.2354,3486.1,3485.2,0.71807]
[1735829163964,2.42033003,3485.8,3485.1,3.2078]
[1735829164147,2.42033003,3485.8,3485.3,0.28721]
[1735829164352,0.28724,3485.0,3484.8,0.28726]
[1735829164541,0.28721,3485.5,3484.8,3.2078]
[1735829164747,0.28721,3485.4,3485.2,0.28722]
[1735829164942,5.62813003,3486.2,3485.6,0.28719]
[1735829165143,0.71775,3486.8,3485.6,0.28719]
[1735829165144,0.28714,3486.3,3486.1,0.28715]
[1735829165343,0.28714,3486.3,3484.8,5.0]
[1735829165344,2.42033003,3487.1,3486.0,3.2078]
[1735829165551,1.58816,3487.2,3486.4,3.2078]
[1735829165840,0.28711,3486.6,3486.3,0.28713]
[1735829166043,0.28711,3486.6,3485.9,3.2078]
[1735829166246,2.42033003,3486.7,3486.6,0.28711]
[1735829166556,0.28709,3486.9,3486.6,0.2871]
[1735829166849,3.2078,3486.7,3485.9,3.2078]
[1735829167053,0.28711,3486.6,3486.4,0.28712]
[1735829167253,3.2078,3486.7,3485.9,3.2078]
[1735829167453,2.70740003,3487.1,3486.8,0.28709]
[1735829167655,3.92539,3487.6,3487.3,0.28704]
[1735829167656,3.69283003,3487.5,3487.3,0.28704]
[1735829167844,1.2725,3487.5,3487.4,0.28704]
[1735829168146,1.3065,3488.0,3487.9,0.287]
[1735829168346,3.2078,3488.4,3488.2,0.28698]
[1735829168555,3.8631,3489.0,3487.8,3.2078]
[1735829168739,0.28693,3488.8,3488.4,0.28696]
[1735829168945,0.28693,3488.9,3488.5,0.28695]
[1735829169148,4.15002,3489.0,3488.7,3.2078]
[1735829169344,3.8631,3489.0,3488.7,3.2078]
[1735829169550,3.8631,3489.0,3488.3,3.2078]
[1735829169748,3.8631,3489.0,3487.9,3.2078]
[1735829170250,0.28694,3488.7,3488.3,0.28696]
[1735829170448,3.8631,3489.0,3488.3,0.28696]
[1735829170749,3.8631,3489.0,3488.3,3.2078]
[1735829170956,0.28688,3489.5,3489.1,0.2869]
[1735829171152,3.2078,3489.9,3488.9,3.2078]
[1735829171344,3.9194,3490.0,3489.4,3.2078]
[1735829171549,3.9194,3490.0,3488.4,0.7174]
[1735829171550,2.601,3490.0,3489.8,3.2078]
[1735829171846,2.601,3490.0,3488.7,1.432]
[1735829171847,1.3055,3490.8,3489.9,0.28683]
[1735829172042,1.3055,3490.8,3489.7,0.28685]
[1735829172248,1.3055,3490.8,3489.4,3.2078]
[1735829172457,2.74303741,3490.4,3489.4,3.49467]
[1735829172651,3.2078,3490.1,3489.4,3.2078]
[1735829172955,3.2078,3490.1,3488.7,1.432]
[1735829172956,0.28686,3489.7,3489.2,0.28689]
[1735829173258,0.28686,3489.7,3489.0,3.2078]
[1735829173259,2.74303741,3490.4,3489.0,3.4947]
[1735829173444,0.28681,3490.3,3489.1,0.2869]
[1735829173648,0.28686,3489.7,3489.2,0.28689]
[1735829174054,0.28686,3489.7,3488.7,1.432]
[1735829174055,3.2078,3489.4,3488.7,1.432]
[1735829174250,3.2078,3489.1,3488.5,3.2078]
[1735829174553,0.28694,3488.6,3488.1,0.28698]
[1735829174760,3.2078,3490.2,3488.3,3.2078]
[1735829174947,3.8162,3490.9,3490.0,3.2078]
[1735829175153,2.5577,3490.9,3490.0,3.2078]
[1735829175353,2.5577,3490.9,3490.4,3.2078]
[1735829175748,2.5577,3490.9,3490.0,3.2078]
[1735829176253,2.5577,3490.9,3489.0,7.74303741]
[1735829176254,2.5577,3490.9,3490.7,0.28677]
[1735829176455,2.5577,3490.9,3490.8,3.2078]
[1735829176856,2.5577,3490.9,3490.5,0.28678]
[1735829176857,2.5577,3490.9,3490.3,3.2078]
[1735829177251,0.28672,3491.4,3490.8,0.28676]
[1735829177457,3.65497854,3491.8,3491.6,0.28669]
[1735829177458,2.18364113,3491.8,3491.6,0.28669]
[1735829177656,0.91194113,3491.8,3491.6,3.2078]
[1735829177958,0.91194113,3491.8,3491.7,0.28669]
[1735829178367,3.2078,3492.7,3491.7,5.0]
[1735829178561,3.2078,3492.7,3492.6,0.28662]
[1735829178752,3.2078,3492.7,3492.2,3.2078]
[1735829179258,3.2078,3492.7,3491.8,3.2078]
[1735829179460,0.28662,3492.6,3491.8,3.2078]
[1735829179659,3.2078,3492.7,3492.3,0.28663]
[1735829179866,0.28662,3492.6,3492.1,0.28666]
[1735829180064,3.2078,3492.7,3491.8,3.2078]
[1735829180458,3.2078,3493.1,3492.6,0.28662]
[1735829180665,0.28658,3493.1,3492.6,0.28662]
[1735829180862,2.74303741,3493.8,3492.6,3.2078]
[1735829181057,0.28654,3493.6,3493.2,0.28657]
[1735829181258,5.7766,3493.9,3493.0,3.2078]
[1735829181461,5.7766,3493.9,3493.7,0.28652]
[1735829181462,3.2078,3493.9,3493.7,0.28652]
[1735829181762,0.28646,3494.5,3493.5,3.2078]
[1735829181958,0.28647,3494.4,3493.7,0.28652]
[1735829182158,0.28646,3494.5,3493.5,3.2078]
[1735829182360,3.49426,3494.6,3493.8,0.28651]
[1735829182555,3.2078,3494.6,3493.9,3.2078]
[1735829182758,0.28648,3494.2,3493.5,0.28654]
[1735829182957,2.74303741,3494.8,3492.6,3.2078]
[1735829182958,2.74303741,3493.8,3492.6,3.2078]
[1735829183161,3.2078,3493.5,3492.6,3.2078]
[1735829183362,3.2078,3493.0,3492.2,3.2078]
[1735829183565,0.2866,3492.8,3492.2,3.49445]
[1735829183866,0.28663,3492.5,3492.2,3.2078]
[1735829184164,3.2078,3493.0,3492.2,3.2078]
[1735829184466,1.2861,3493.4,3492.3,3.2078]
[1735829184667,0.28657,3493.2,3492.6,0.28661]
[1735829184867,3.2078,3493.3,3492.3,3.2078]
[1735829185064,3.2078,3493.0,3492.3,3.2078]
[1735829185365,3.2078,3493.0,3491.9,3.2078]
[1735829185562,4.4939,3493.4,3492.4,3.2078]
[1735829186062,4.4939,3493.4,3491.4,0.71678]
[1735829186063,3.2078,3493.3,3492.5,3.2078]
[1735829186259,3.2078,3493.3,3492.6,0.28662]
[1735829186260,3.49436,3493.3,3492.6,0.28662]
[1735829186469,3.2078,3492.9,3492.1,4.6368]
[1735829186758,0.28664,3492.3,3492.1,3.2078]
[1735829186959,2.74303741,3492.7,3492.1,3.2078]
[1735829187259,3.2078,3492.5,3491.7,3.2078]
[1735829187766,0.28665,3492.2,3491.7,3.2078]
[1735829188168,3.2078,3492.1,3490.9,3.2078]
[1735829188470,3.2078,3492.1,3488.5,1.43475]
[1735829188471,3.49454,3491.1,3490.4,0.2868]
[1735829188768,2.74303741,3491.7,3490.0,0.28682]
[1735829188769,0.28678,3490.6,3490.0,0.28682]
[1735829188963,0.2868,3490.4,3489.9,3.49464]
[1735829189158,3.2078,3490.7,3489.9,3.2078]
[1735829189364,5.95083741,3490.7,3489.9,3.2078]
[1735829189767,3.2078,3490.3,3489.4,3.2078]
[1735829189967,2.74303741,3490.2,3489.4,3.2078]
[1735829190164,3.2078,3489.8,3488.6,5.11352809]
[1735829190464,2.74303741,3489.7,3489.0,3.2078]
[1735829190666,2.572,3490.2,3489.4,3.2078]
[1735829190863,2.74303741,3490.7,3489.7,0.28685]
[1735829191168,2.74303741,3490.7,3489.4,3.2078]
[1735829191169,0.2868,3490.4,3489.8,0.28684]
[1735829191373,0.28681,3490.3,3489.7,0.28685]
[1735829191585,0.28681,3490.3,3489.4,3.2078]
[1735829191586,3.2078,3490.4,3489.4,3.2078]
[1735829191867,3.2078,3490.4,3489.1,1.429]
[1735829192066,3.2078,3489.3,3488.6,3.2078]
[1735829192269,0.28692,3488.9,3488.4,0.28696]
[1735829192472,0.28691,3489.1,3488.6,0.28694]
[1735829192674,0.28692,3489.0,3488.2,3.2078]
[1735829192869,5.26913741,3489.7,3488.2,3.2078]
[1735829192870,8.47693741,3489.7,3488.2,3.2078]
[1735829193072,3.2078,3489.3,3488.2,3.2078]